bitfinex-derivatives/quotes_BTCF0:USTF0_20250718
["timestamp","ask_amount","ask_price","bid_price","bid_amount"]
[1752821563398,1.16722099,120470.0,120460.0,0.57060404]
[1752821563602,1.44003801,120470.0,120460.0,0.57060404]
[1752821564705,0.84431894,120470.0,120460.0,0.57060404]
[1752821564901,0.6921644,120480.0,120470.0,0.1658775]
[1752821565110,0.6921644,120480.0,120470.0,0.75026452]
[1752821565111,1.2253979,120480.0,120470.0,0.75026452]
[1752821565302,0.7614889,120480.0,120470.0,0.75026452]
[1752821565502,0.7614889,120480.0,120470.0,0.77256144]
[1752821565503,1.2256379,120480.0,120470.0,0.77256144]
[1752821565806,0.6366379,120480.0,120470.0,0.49974442]
[1752821565999,1.3495079,120480.0,120470.0,0.50174442]
[1752821566706,0.9934579,120480.0,120470.0,0.53156818]
[1752821567006,0.9934579,120480.0,120470.0,0.89236818]
[1752821567205,0.9934579,120480.0,120470.0,0.53356818]
[1752821567406,0.9934579,120480.0,120470.0,0.87207126]
[1752821567605,0.9934579,120480.0,120470.0,0.91683724]
[1752821567806,0.9934579,120480.0,120470.0,0.87207126]
[1752821568007,0.8694279,120480.0,120470.0,0.91683724]
[1752821569406,0.9855079,120480.0,120470.0,0.91683724]
[1752821572311,0.9846679,120480.0,120470.0,0.9167888]
[1752821572610,0.9846679,120480.0,120470.0,0.88701348]
[1752821574711,0.9846679,120480.0,120470.0,0.52621348]
[1752821574914,0.9846679,120480.0,120470.0,0.88701348]
[1752821575708,0.3966679,120480.0,120470.0,0.52621348]
[1752821575913,0.9842279,120480.0,120470.0,0.52621348]
[1752821576512,0.9842279,120480.0,120470.0,0.88701348]
[1752821577009,0.9842279,120480.0,120470.0,0.52621348]
[1752821577215,0.9842279,120480.0,120470.0,0.88701348]
[1752821580817,0.9842279,120480.0,120470.0,0.52621348]
[1752821581115,1.0232879,120480.0,120470.0,0.52621348]
[1752821581815,1.0232879,120480.0,120470.0,0.88701348]
[1752821582016,1.0232879,120480.0,120470.0,0.52621348]
[1752821582315,1.0232879,120480.0,120470.0,0.88701348]
[1752821582815,1.0232879,120480.0,120470.0,0.52621348]
[1752821583015,1.0232879,120480.0,120470.0,0.88701348]
[1752821583815,1.0232879,120480.0,120470.0,0.52621348]
[1752821584018,1.0232879,120480.0,120470.0,0.88701348]
[1752821584315,1.0232879,120480.0,120470.0,0.52621348]
[1752821585214,1.0232879,120480.0,120470.0,0.88701348]
[1752821585515,1.0232879,120480.0,120470.0,0.52621348]
[1752821586515,1.0232879,120480.0,120470.0,0.88701348]
[1752821586815,1.0232879,120480.0,120470.0,0.52621348]
[1752821587017,1.0232879,120480.0,120470.0,0.88701348]
[1752821587212,1.0232879,120480.0,120470.0,0.52621348]
[1752821587408,1.0232879,120480.0,120470.0,0.88701348]
[1752821587716,1.0232879,120480.0,120470.0,0.52621348]
[1752821588312,0.4357279,120480.0,120470.0,0.52621348]
[1752821588516,1.29659492,120480.0,120470.0,0.52621348]
[1752821588717,0.71151492,120480.0,120470.0,0.52621348]
[1752821589011,1.29655492,120480.0,120470.0,0.52621348]
[1752821589216,0.71151492,120480.0,120470.0,0.52621348]
[1752821589517,1.29651492,120480.0,120470.0,0.52621348]
[1752821590117,1.29354492,120480.0,120470.0,0.52621348]
[1752821590817,1.0207279,120480.0,120470.0,0.52621348]
[1752821593324,1.0207279,120480.0,120470.0,0.4814475]
[1752821593523,1.0207279,120480.0,120470.0,0.5261829]
[1752821594227,1.0207279,120480.0,120470.0,0.4814475]
[1752821594926,1.68849279,120480.0,120470.0,0.3548976]
[1752821595122,1.68849279,120480.0,120470.0,0.04875255]
[1752821595123,1.99750768,120480.0,120470.0,0.04875255]
[1752821595325,2.12126153,120480.0,120470.0,0.04875255]
[1752821595727,1.23021664,120480.0,120470.0,0.12088255]
[1752821595919,0.55948175,120480.0,120470.0,0.83836504]
[1752821596119,0.9811879,120480.0,120470.0,1.19916504]
[1752821596423,0.9813879,120480.0,120470.0,1.15441249]
[1752821596820,0.9813879,120480.0,120470.0,0.8474476]
[1752821597026,0.9813879,120480.0,120470.0,0.4866476]
[1752821597230,0.9813879,120480.0,120470.0,0.75942756]
[1752821597426,0.9813879,120480.0,120470.0,0.4866476]
[1752821597626,1.0203279,120480.0,120470.0,0.4866476]
[1752821598019,1.0203279,120480.0,120470.0,0.8474476]
[1752821598924,0.4357279,120480.0,120470.0,0.32077]
[1752821599222,0.4386979,120480.0,120470.0,0.36552909]
[1752821599429,1.0229379,120480.0,120470.0,0.53140649]
[1752821600230,1.0229379,120480.0,120470.0,0.4866474]
[1752821600434,0.4386979,120480.0,120470.0,0.4866474]
[1752821600629,1.0230579,120480.0,120470.0,0.4866474]
[1752821600821,1.0200879,120480.0,120470.0,0.8474474]
[1752821601029,1.0202079,120480.0,120470.0,0.8474474]
[1752821601332,1.0201279,120480.0,120470.0,0.4866474]
[1752821601931,1.0201279,120480.0,120470.0,0.8474474]
[1752821602633,1.0201279,120480.0,120470.0,0.8922016]
[1752821603129,1.0201279,120480.0,120470.0,0.8474474]
[1752821603329,1.0201279,120480.0,120470.0,0.53140114]
[1752821604233,1.0197279,120480.0,120470.0,0.89220114]
[1752821605236,1.0197279,120480.0,120470.0,1.1649811]
[1752821606534,1.0197279,120480.0,120470.0,1.12022736]
[1752821608031,1.0197279,120480.0,120470.0,1.17990113]
[1752821608634,1.0197279,120480.0,120470.0,1.12022736]
[1752821610636,0.4357279,120480.0,120470.0,1.12022736]
[1752821611034,1.0185279,120480.0,120470.0,0.8474474]
[1752821613237,1.0185279,120480.0,120470.0,0.89217824]
[1752821614036,1.0185279,120480.0,120470.0,1.1649582]
[1752821614636,0.4357279,120480.0,120470.0,1.1649582]
[1752821614840,0.9794679,120480.0,120470.0,1.12022736]
[1752821616942,0.9794679,120480.0,120470.0,0.8474474]
[1752821617237,0.9794679,120480.0,120470.0,1.17990113]
[1752821617538,0.9794679,120480.0,120470.0,0.90712117]
[1752821617839,0.9794679,120480.0,120470.0,1.12022736]
[1752821618839,0.9794679,120480.0,120470.0,1.17990113]
[1752821619038,0.9794679,120480.0,120470.0,1.12022736]
[1752821620540,0.9794679,120480.0,120470.0,1.16495749]
[1752821621239,1.0185279,120480.0,120470.0,1.16495749]
[1752821621942,1.0185279,120480.0,120470.0,0.89217753]
[1752821622141,1.0185279,120480.0,120470.0,1.16495749]
[1752821622941,1.0185279,120480.0,120470.0,1.19907178]
[1752821623442,1.0185279,120480.0,120470.0,1.15434165]
[1752821624140,1.0185279,120480.0,120470.0,1.21401542]
[1752821624642,1.0185279,120480.0,120470.0,1.15434165]
[1752821625240,0.9794679,120480.0,120470.0,1.15434165]
[1752821625632,0.3966679,120480.0,120470.0,1.15434165]
[1752821625833,0.9794279,120480.0,120470.0,1.15434165]
[1752821628444,0.9794279,120480.0,120470.0,1.21401542]
[1752821628744,0.9794279,120480.0,120470.0,0.90712117]
[1752821628945,0.9794279,120480.0,120470.0,1.21401542]
[1752821629247,1.32534215,120480.0,120470.0,1.21401542]
[1752821629745,1.32534215,120480.0,120470.0,1.15434165]
[1752821629746,0.9793879,120480.0,120470.0,1.15434165]
[1752821632346,0.9793879,120480.0,120470.0,1.21401542]
[1752821633344,1.0184479,120480.0,120470.0,1.21401542]
[1752821633847,1.0184479,120480.0,120470.0,0.90712117]
[1752821634048,1.0184479,120480.0,120470.0,0.85321542]
[1752821634347,1.32534215,120480.0,120470.0,0.79354165]
[1752821634746,1.0184479,120480.0,120470.0,0.85321542]
[1752821635049,1.32534215,120480.0,120470.0,0.85321542]
[1752821636245,0.74559215,120480.0,120470.0,0.84346542]
[1752821636447,1.32526215,120480.0,120470.0,0.78379165]
[1752821638453,1.23139074,120480.0,120470.0,0.31102]
[1752821638644,2.12092499,120480.0,120470.0,0.12090362]
[1752821638850,1.53828499,120480.0,120470.0,0.04877362]
[1752821639050,2.12092499,120480.0,120470.0,0.04877362]
[1752821639249,1.53828499,120480.0,120470.0,0.04877362]
[1752821639650,1.53828499,120480.0,120470.0,0.07565111]
[1752821639850,0.3825075,120470.0,120460.0,0.1096391]
[1752821640152,0.4558771,120440.0,120430.0,0.04866]
[1752821640353,1.77053395,120440.0,120430.0,0.04866]
[1752821640553,1.89505834,120440.0,120430.0,0.2145926]
[1752821641053,1.86119237,120440.0,120430.0,0.2145926]
[1752821641448,1.86119237,120440.0,120430.0,0.04866]
[1752821641648,1.86119237,120440.0,120430.0,0.2145926]
[1752821641843,1.58816409,120440.0,120430.0,0.2145926]
[1752821642045,1.18588149,120440.0,120430.0,0.3368426]
[1752821642244,1.18588149,120440.0,120430.0,0.8358326]
[1752821642452,1.18588149,120440.0,120430.0,0.4750326]
[1752821642642,0.60328149,120440.0,120430.0,0.4770326]
[1752821642843,0.83758685,120440.0,120430.0,1.11086088]
[1752821643046,0.08292235,120440.0,120430.0,1.11086088]
[1752821643248,0.8249976,120450.0,120430.0,1.04845408]
[1752821643554,0.1659326,120440.0,120430.0,1.07200408]
[1752821643754,0.08292235,120440.0,120430.0,1.07200408]
[1752821643952,0.8249976,120450.0,120430.0,1.04845408]
[1752821644155,1.1028426,120450.0,120440.0,0.4730187]
[1752821644348,1.18575129,120450.0,120440.0,0.4730187]
[1752821645255,1.18675129,120450.0,120440.0,0.4730187]
[1752821646156,0.60411129,120450.0,120440.0,0.4730187]
[1752821646351,1.18675129,120450.0,120440.0,0.4730187]
[1752821646553,1.16387129,120450.0,120440.0,0.4730187]
[1752821648056,1.16387129,120450.0,120440.0,0.8338187]
[1752821648457,1.16387129,120450.0,120440.0,0.4730187]
[1752821648658,1.16387129,120450.0,120440.0,0.8338187]
[1752821648861,1.16287129,120450.0,120440.0,0.8348187]
[1752821649053,1.18575129,120450.0,120440.0,0.8348187]
[1752821649362,1.45877957,120450.0,120440.0,0.4740187]
[1752821649860,1.45877957,120450.0,120440.0,0.4750187]
[1752821656560,1.47581636,120450.0,120440.0,0.4750187]
[1752821656857,1.47581621,120450.0,120440.0,0.4750187]
[1752821657257,1.81957957,120450.0,120440.0,0.4750187]
[1752821658165,1.45877957,120450.0,120440.0,0.4750187]
[1752821658556,1.81957957,120450.0,120440.0,0.4750187]
[1752821659065,0.60311129,120450.0,120440.0,0.4750187]
[1752821659259,1.45869957,120450.0,120440.0,0.4750187]
[1752821661261,1.18567129,120450.0,120440.0,0.4750187]
[1752821661460,1.45869957,120450.0,120440.0,0.4750187]
[1752821662263,1.18567129,120450.0,120440.0,0.4750187]
[1752821662462,1.45869957,120450.0,120440.0,0.4750187]
[1752821663663,1.83652535,120450.0,120440.0,0.4750187]
[1752821663968,1.83644535,120450.0,120440.0,0.4750187]
[1752821664267,1.81941957,120450.0,120440.0,0.4750187]
[1752821664563,1.83644966,120450.0,120440.0,0.4750187]
[1752821664763,1.25396966,120450.0,120440.0,0.4750188]
[1752821664964,1.83644966,120450.0,120440.0,0.3855388]
[1752821666768,1.25396966,120450.0,120440.0,0.4757288]
[1752821667068,1.83640966,120450.0,120440.0,0.4757288]
[1752821667570,1.17966138,120450.0,120440.0,0.4757288]
[1752821667767,1.06174138,120450.0,120440.0,0.8365288]
[1752821669167,0.47934138,120450.0,120440.0,0.8365288]
[1752821669369,1.45931966,120450.0,120440.0,0.88113671]
[1752821669564,1.18629138,120450.0,120440.0,0.88113671]
[1752821669768,1.20980138,120450.0,120440.0,0.88113671]
[1752821670166,1.48282966,120450.0,120440.0,0.88113671]
[1752821671768,1.84358966,120450.0,120440.0,0.30981]
[1752821672073,1.84354966,120450.0,120440.0,0.30981]
[1752821672264,1.57052138,120450.0,120440.0,0.09526791]
[1752821672463,1.84354966,120450.0,120440.0,0.05066]
[1752821673071,1.84354966,120450.0,120440.0,0.002]
[1752821673271,1.84354966,120450.0,120440.0,0.001]
[1752821673469,1.84354966,120450.0,120440.0,0.05063]
[1752821674178,1.26122966,120450.0,120440.0,0.001]
[1752821674376,0.3796388,120440.0,120430.0,0.04963]
[1752821674583,1.05300717,120440.0,120430.0,0.04963]
[1752821674878,1.17690786,120440.0,120430.0,0.04963]
[1752821675271,0.3796526,120430.0,120420.0,0.84175571]
[1752821675479,1.27450097,120430.0,120420.0,0.84175571]
[1752821675674,1.39956613,120430.0,120420.0,0.84175571]
[1752821675876,1.17808613,120430.0,120420.0,0.37415341]
[1752821676076,1.17808613,120430.0,120420.0,0.09423791]
[1752821676077,1.76036613,120430.0,120420.0,0.09423791]
[1752821676382,1.76036613,120430.0,120420.0,0.05163]
[1752821676680,1.76036613,120430.0,120420.0,0.05363]
[1752821677186,1.76036613,120430.0,120420.0,0.004]
[1752821679173,1.76036613,120430.0,120420.0,0.05363]
[1752821681179,1.76036613,120430.0,120420.0,0.004]
[1752821681379,1.76028613,120430.0,120420.0,0.004]
[1752821683086,0.3981763,120420.0,120410.0,0.11692806]
[1752821683286,1.04903467,120420.0,120410.0,0.11692806]
[1752821683483,1.17390709,120420.0,120410.0,0.11692806]
[1752821684482,1.75610709,120420.0,120410.0,0.11692806]
[1752821685087,1.75610709,120420.0,120410.0,0.11892806]
[1752821685288,1.75610709,120420.0,120410.0,0.12092806]
[1752821685485,1.76452706,120420.0,120410.0,0.12092806]
[1752821686787,1.18232706,120420.0,120410.0,0.12092806]
[1752821686985,1.76448706,120420.0,120410.0,0.12092806]
[1752821689886,1.18232706,120420.0,120410.0,0.12092806]
[1752821690087,1.76444706,120420.0,120410.0,0.12092806]
[1752821692691,1.76444706,120420.0,120410.0,0.07129806]
[1752821693283,1.18232706,120420.0,120410.0,0.05278806]
[1752821693486,0.2431093,120410.0,120400.0,0.04591]
[1752821693692,0.97945767,120410.0,120400.0,0.04591]
[1752821693886,1.68590367,120410.0,120400.0,0.04591]
[1752821694092,1.68590367,120410.0,120400.0,0.11135852]
[1752821694287,1.68590367,120410.0,120400.0,0.06544852]
[1752821694596,0.3286131,120400.0,120390.0,0.18321]
[1752821694795,0.96244138,120400.0,120390.0,0.18321]
[1752821695092,1.10400356,120400.0,120390.0,0.18321]
[1752821697392,1.10400356,120400.0,120390.0,0.18621]
[1752821697886,1.10500356,120400.0,120390.0,0.18621]
[1752821698193,1.68704356,120400.0,120390.0,0.18321]
[1752821698792,1.94284825,120400.0,120390.0,0.04591]
[1752821699189,1.94284825,120400.0,120390.0,0.11350386]
[1752821699489,1.68704646,120400.0,120390.0,0.04591]
[1752821702593,1.68704646,120400.0,120390.0,0.18321]
[1752821703994,1.68704646,120400.0,120390.0,0.24863756]
[1752821704691,1.68696646,120400.0,120390.0,0.24863756]
[1752821704897,1.68696646,120400.0,120390.0,0.11133756]
[1752821705093,1.95999474,120400.0,120390.0,0.11133756]
[1752821707301,1.68696646,120400.0,120390.0,0.11133756]
[1752821707502,1.68696646,120400.0,120390.0,0.24863756]
[1752821708103,1.10500646,120400.0,120390.0,0.24863756]
[1752821708303,1.68692646,120400.0,120390.0,0.24863756]
[1752821708505,1.10500646,120400.0,120390.0,0.24863756]
[1752821708703,1.68692646,120400.0,120390.0,0.28167756]
[1752821709404,1.01951646,120400.0,120390.0,0.53432426]
[1752821709702,0.30853818,120400.0,120390.0,1.16815254]
[1752821709898,0.89041818,120400.0,120390.0,1.16815254]
[1752821710506,0.89041818,120400.0,120390.0,0.89512426]
[1752821710704,0.87319169,120400.0,120390.0,1.16815254]
[1752821711703,0.87319169,120400.0,120390.0,0.89512426]
[1752821711905,0.87319169,120400.0,120390.0,0.93973217]
[1752821712105,0.87319169,120400.0,120390.0,1.21276045]
[1752821712302,0.001,120400.0,120390.0,1.37888045]
[1752821712508,0.1659654,120410.0,120400.0,0.4688785]
[1752821712706,0.18323478,120410.0,120400.0,1.10270678]
[1752821713706,0.1659654,120410.0,120400.0,1.14731469]
[1752821713909,0.1659654,120410.0,120400.0,1.14831469]
[1752821714412,0.1659654,120410.0,120400.0,1.14931469]
[1752821715710,0.1659654,120410.0,120400.0,1.15031469]
[1752821717109,0.08292638,120410.0,120400.0,1.15873954]
[1752821717309,0.7062623,120420.0,120400.0,1.28321274]
[1752821717510,0.2489193,120420.0,120410.0,0.4688687]
[1752821717808,0.37393505,120420.0,120410.0,0.4688687]
[1752821718010,0.33244765,120420.0,120410.0,0.8296687]
[1752821718203,0.2489089,120430.0,120420.0,0.165945]
[1752821718407,0.26613077,120430.0,120420.0,1.11485328]
[1752821718608,0.22428032,120430.0,120420.0,1.11485328]
[1752821718805,0.10011405,120430.0,120420.0,1.11485328]
[1752821719008,0.10011405,120430.0,120420.0,0.86573621]
[1752821719318,0.2903612,120440.0,120430.0,0.3344112]
[1752821719510,0.2903612,120440.0,120430.0,0.3586912]
[1752821719710,0.4142768,120440.0,120430.0,0.3586912]
[1752821720913,0.4172768,120440.0,120430.0,0.3586912]
[1752821721113,0.4172768,120440.0,120430.0,0.4834312]
[1752821721322,0.4142768,120440.0,120430.0,0.4834312]
[1752821721510,0.4152768,120440.0,120430.0,0.4834312]
[1752821722110,0.373795,120440.0,120430.0,0.4834312]
[1752821722314,0.955355,120440.0,120430.0,0.4834312]
[1752821722514,0.956355,120440.0,120430.0,0.4834312]
[1752821723219,0.955355,120440.0,120430.0,0.4834312]
[1752821723822,1.032355,120440.0,120430.0,0.4834312]
[1752821727523,1.145315,120440.0,120430.0,0.4834312]
[1752821728524,1.186825,120440.0,120430.0,0.4834312]
[1752821729823,0.605265,120440.0,120430.0,0.4834312]
[1752821730220,1.186585,120440.0,120430.0,0.4834312]
[1752821730819,1.20370539,120440.0,120430.0,0.4834312]
[1752821731219,1.20270539,120440.0,120430.0,0.4834312]
[1752821731621,1.47573367,120440.0,120430.0,0.4834312]
[1752821731928,1.83653367,120440.0,120430.0,0.4834149]
[1752821732122,1.83653367,120440.0,120430.0,0.07288]
[1752821732333,2.10956195,120440.0,120430.0,0.0486]
[1752821732536,0.1659149,120430.0,120420.0,0.14902]
[1752821732728,1.57098318,120430.0,120420.0,0.19762]
[1752821733031,1.69521146,120430.0,120420.0,0.19762]
[1752821733231,1.69521146,120430.0,120420.0,0.22764]
[1752821733431,1.69521146,120430.0,120420.0,0.23958]
[1752821733632,1.69521146,120430.0,120420.0,0.24158]
[1752821734232,1.69521146,120430.0,120420.0,0.24258]
[1752821734835,1.69521146,120430.0,120420.0,0.3205]
[1752821736330,1.69513146,120430.0,120420.0,0.3205]
[1752821738629,1.69513146,120430.0,120420.0,0.4864287]
[1752821739327,1.11393146,120430.0,120420.0,0.4864287]
[1752821739534,1.69501146,120430.0,120420.0,0.4864287]
[1752821740237,1.71217789,120430.0,120420.0,0.4864287]
[1752821741531,1.13109789,120430.0,120420.0,0.4864287]
[1752821741732,1.71217789,120430.0,120420.0,0.4864287]
[1752821742234,1.71217789,120430.0,120420.0,0.53103661]
[1752821742435,1.71217789,120430.0,120420.0,0.36510791]
[1752821742937,1.71213789,120430.0,120420.0,0.36510791]
[1752821743736,1.71213789,120430.0,120420.0,0.28718791]
[1752821743939,1.13109789,120430.0,120420.0,0.15050791]
[1752821744140,1.71209789,120430.0,120420.0,0.09620791]
[1752821744441,1.71209789,120430.0,120420.0,0.04760791]
[1752821744637,1.71209789,120430.0,120420.0,0.003]
[1752821744833,1.71205789,120430.0,120420.0,0.003]
[1752821745240,1.75356789,120430.0,120420.0,0.003]
[1752821749842,1.48053961,120430.0,120420.0,0.003]
[1752821750043,1.75356789,120430.0,120420.0,0.003]
[1752821751244,1.75356811,120430.0,120420.0,0.003]
[1752821754936,0.2480524,120420.0,120410.0,0.0486]
[1752821755136,0.2480662,120410.0,120400.0,0.21454655]
[1752821755338,1.60327113,120410.0,120400.0,0.25999655]
[1752821755545,1.72734371,120410.0,120400.0,0.25999655]
[1752821756146,1.72734371,120410.0,120400.0,0.42595665]
[1752821756347,1.73562593,120410.0,120400.0,0.45676665]
[1752821756549,1.73562593,120410.0,120400.0,0.29080655]
[1752821757047,1.73562593,120410.0,120400.0,0.29380655]
[1752821757648,1.73562593,120410.0,120400.0,0.29680655]
[1752821760449,1.15482593,120410.0,120400.0,0.29680655]
[1752821760750,1.73554593,120410.0,120400.0,0.11731655]
[1752821761844,1.73554593,120410.0,120400.0,0.14125655]
[1752821763552,1.73546593,120410.0,120400.0,0.14125655]
[1752821763748,1.73546593,120410.0,120400.0,0.11731655]
[1752821767255,1.73546593,120410.0,120400.0,0.14125655]
[1752821768257,1.73546593,120410.0,120400.0,0.26235655]
[1752821770360,1.73546593,120410.0,120400.0,0.14125655]
[1752821772257,1.73546593,120410.0,120400.0,0.11731655]
[1752821772458,1.73546593,120410.0,120400.0,0.04101355]
[1752821772459,2.00837421,120410.0,120400.0,0.04101355]
[1752821772658,0.3715038,120390.0,120380.0,0.19049]
[1752821772859,1.60301873,120390.0,120380.0,0.13543985]
[1752821773060,1.72798205,120390.0,120380.0,0.11149985]
[1752821773356,2.08878205,120390.0,120380.0,0.11149985]
[1752821773956,2.08878205,120390.0,120380.0,0.11749985]
[1752821774359,2.08878205,120390.0,120380.0,0.12149985]
[1752821775963,1.50826205,120390.0,120380.0,0.12149985]
[1752821776163,2.08878205,120390.0,120380.0,0.12149985]
[1752821776362,2.08878205,120390.0,120380.0,0.26653985]
[1752821777762,1.50826205,120390.0,120380.0,0.55777745]
[1752821777964,2.08874205,120390.0,120380.0,0.55777745]
[1752821778164,2.08874205,120390.0,120380.0,0.39178985]
[1752821779465,2.08878205,120390.0,120380.0,0.39178985]
[1752821780868,2.08878205,120390.0,120380.0,0.55777745]
[1752821781368,2.08878205,120390.0,120380.0,0.39178985]
[1752821785772,1.50826205,120390.0,120380.0,0.39178985]
[1752821786075,2.08870205,120390.0,120380.0,0.39178985]
[1752821786372,2.13023205,120390.0,120380.0,0.39178985]
[1752821789485,2.13019205,120390.0,120380.0,0.39178985]
[1752821789685,2.13019205,120390.0,120380.0,0.30975985]
[1752821791388,1.54979205,120390.0,120380.0,0.30975985]
[1752821791588,2.13019205,120390.0,120380.0,0.30975985]
[1752821792384,2.13015205,120390.0,120380.0,0.30975985]
[1752821792990,2.13015205,120390.0,120380.0,0.14543985]
[1752821793288,2.13015205,120390.0,120380.0,0.12149985]
[1752821794280,2.13015205,120390.0,120380.0,0.05449985]
[1752821794486,0.4179264,120360.0,120350.0,0.07672]
[1752821794685,1.44276272,120360.0,120350.0,0.3278321]
[1752821794983,1.44271076,120360.0,120350.0,0.2863253]
[1752821795184,1.47437731,120360.0,120350.0,0.2863291]
[1752821795393,1.47437731,120360.0,120350.0,0.1203]
[1752821796090,1.59946604,120360.0,120350.0,0.1203]
[1752821796692,1.59946604,120360.0,120350.0,0.31598]
[1752821797287,1.32643776,120360.0,120350.0,0.4820091]
[1752821797486,1.32743776,120360.0,120350.0,0.31298]
[1752821797780,1.60046604,120360.0,120350.0,0.31298]
[1752821798188,1.33343776,120360.0,120350.0,0.31298]
[1752821798687,1.60646604,120360.0,120350.0,0.31298]
[1752821798993,2.02541604,120360.0,120350.0,0.31298]
[1752821800886,1.75238776,120360.0,120350.0,0.31298]
[1752821801091,2.02541604,120360.0,120350.0,0.4790091]
[1752821801687,1.75238776,120360.0,120350.0,0.4790091]
[1752821802988,2.02541604,120360.0,120350.0,0.4790091]
[1752821803398,1.66461604,120360.0,120350.0,0.4790091]
[1752821803695,2.02541604,120360.0,120350.0,0.4790091]
[1752821803996,1.70258451,120360.0,120350.0,0.4790091]
[1752821804390,0.19023873,120360.0,120350.0,1.11283738]
[1752821804585,0.10715801,120360.0,120350.0,1.33875]
[1752821804792,0.10715801,120360.0,120350.0,1.58875]
[1752821804793,0.02407729,120360.0,120350.0,1.58875]
[1752821805096,0.4135577,120380.0,120370.0,0.4540715]
[1752821805295,0.4135577,120380.0,120370.0,1.11280978]
[1752821805594,1.11770379,120380.0,120370.0,1.11280978]
[1752821806096,1.13846379,120380.0,120370.0,1.11280978]
[1752821806896,1.13846379,120380.0,120370.0,0.75200978]
[1752821807098,1.13846379,120380.0,120370.0,0.4789815]
[1752821807398,1.14046379,120380.0,120370.0,0.4789815]
[1752821807690,1.15816073,120380.0,120370.0,0.4789815]
[1752821808087,1.16016073,120380.0,120370.0,0.4789815]
[1752821812797,1.25110073,120380.0,120370.0,0.31298]
[1752821813103,0.4464518,120370.0,120360.0,0.23036]
[1752821813292,1.12205702,120370.0,120360.0,0.11458]
[1752821813495,1.82667389,120370.0,120360.0,0.10273]
[1752821813691,1.82667389,120370.0,120360.0,0.04777]
[1752821814297,1.82767389,120370.0,120360.0,0.04777]
[1752821815101,1.24743389,120370.0,120360.0,0.04777]
[1752821815304,1.82767389,120370.0,120360.0,0.07109]
[1752821815506,1.82767389,120370.0,120360.0,0.30701]
[1752821815706,1.55464561,120370.0,120360.0,0.30701]
[1752821815901,1.55464561,120370.0,120360.0,0.4730255]
[1752821816304,1.12362561,120370.0,120360.0,0.4730255]
[1752821817204,1.16972561,120370.0,120360.0,0.4730255]
[1752821817405,1.19380561,120370.0,120360.0,0.4730255]
[1752821818702,1.55460561,120370.0,120360.0,0.4730255]
[1752821821009,1.55460561,120370.0,120360.0,0.11458]
[1752821821208,1.82763389,120370.0,120360.0,0.07109]
[1752821822407,1.82758006,120370.0,120360.0,0.07109]
[1752821822805,1.86911006,120370.0,120360.0,0.07109]
[1752821823402,1.59608178,120370.0,120360.0,0.07109]
[1752821823606,1.86911006,120370.0,120360.0,0.07109]
[1752821824113,1.86911006,120370.0,120360.0,0.2371056]
[1752821824299,1.86911006,120370.0,120360.0,0.2805956]
[1752821824503,1.86911006,120370.0,120360.0,0.3572456]
[1752821824707,1.86911006,120370.0,120360.0,0.4730256]
[1752821825103,1.50831006,120370.0,120360.0,0.4730256]
[1752821825301,1.01588178,120370.0,120360.0,0.4730256]
[1752821825506,1.16506178,120370.0,120360.0,0.4730256]
[1752821825708,0.58490178,120370.0,120360.0,0.74605388]
[1752821825909,1.16506178,120370.0,120360.0,0.4730256]
[1752821826111,1.16506178,120370.0,120360.0,0.74605388]
[1752821826710,1.16506178,120370.0,120360.0,0.4730256]
[1752821827112,1.21116178,120370.0,120360.0,0.4730256]
[1752821827312,1.23524178,120370.0,120360.0,0.4730256]
[1752821829716,0.65508178,120370.0,120360.0,0.4730256]
[1752821829916,1.23520178,120370.0,120360.0,0.4730256]
[1752821830106,1.23648076,120370.0,120360.0,0.4730256]
[1752821830510,1.87030904,120370.0,120360.0,0.10273]
[1752821830707,1.87030904,120370.0,120360.0,0.04777]
[1752821831007,1.87030904,120370.0,120360.0,0.2137856]
[1752821831008,1.92845904,120370.0,120360.0,0.2137856]
[1752821832219,1.92845904,120370.0,120360.0,0.2371056]
[1752821835118,1.65543076,120370.0,120360.0,0.2371056]
[1752821835420,1.92841904,120370.0,120360.0,0.2805956]
[1752821835617,1.65539076,120370.0,120360.0,0.4730256]
[1752821835813,1.5862146,120370.0,120360.0,0.74605388]
[1752821836223,1.2254146,120370.0,120360.0,0.74605388]
[1752821836930,1.2254146,120370.0,120360.0,0.4730256]
[1752821837119,1.2922746,120370.0,120360.0,0.4730256]
[1752821837623,1.3504246,120370.0,120360.0,0.4730256]
[1752821838726,1.3751946,120370.0,120360.0,0.4730256]
[1752821842622,1.37521309,120370.0,120360.0,0.4730256]
[1752821843722,0.79513309,120370.0,120360.0,0.4730256]
[1752821843923,1.37513309,120370.0,120360.0,0.4730256]
[1752821852131,1.37505309,120370.0,120360.0,0.74605388]
[1752821852833,0.81589309,120370.0,120360.0,0.74605388]
[1752821853034,1.39581309,120370.0,120360.0,0.74605388]
[1752821857640,0.81589309,120370.0,120360.0,0.74605388]
[1752821857843,1.39577309,120370.0,120360.0,0.74605388]
[1752821858043,1.39577309,120370.0,120360.0,0.4730256]
[1752821858344,1.39577309,120370.0,120360.0,0.74605388]
[1752821858842,0.81589309,120370.0,120360.0,0.74605388]
[1752821859040,0.49594935,120370.0,120360.0,1.10685388]
[1752821859241,0.17580054,120370.0,120360.0,1.68669388]
[1752821859448,0.17580054,120370.0,120360.0,1.38983634]
[1752821859647,0.0927286,120370.0,120360.0,1.55585194]
[1752821859848,0.00965666,120370.0,120360.0,1.55585194]
[1752821860049,1.0615394,120380.0,120370.0,0.2101946]
[1752821860249,1.0615394,120380.0,120370.0,0.67985288]
[1752821860449,1.18655626,120380.0,120370.0,0.67985288]
[1752821861653,1.18655626,120380.0,120370.0,0.75036288]
[1752821862549,1.31213626,120380.0,120370.0,0.75036288]
[1752821866354,1.1871194,120380.0,120370.0,0.75036288]
[1752821871853,1.20542598,120380.0,120370.0,0.75036288]
[1752821873752,0.62562598,120380.0,120370.0,0.75036288]
[1752821873954,1.20534598,120380.0,120370.0,0.75036288]
[1752821874355,1.20534598,120380.0,120370.0,0.4773346]
[1752821874556,1.56614598,120380.0,120370.0,0.4773346]
[1752821874748,0.1660149,120370.0,120360.0,0.58551653]
[1752821874955,1.35836976,120370.0,120360.0,0.31511283]
[1752821875156,1.08534148,120370.0,120360.0,0.31511283]
[1752821877052,1.08734148,120370.0,120360.0,0.31511283]
[1752821879862,1.08834148,120370.0,120360.0,0.31511283]
[1752821880162,1.12987148,120370.0,120360.0,0.31511283]
[1752821880462,0.55015148,120370.0,120360.0,0.31511283]
[1752821880663,1.12983148,120370.0,120360.0,0.31511283]
[1752821882362,1.12983148,120370.0,120360.0,0.43008283]
[1752821882762,1.12983148,120370.0,120360.0,0.70311111]
[1752821883360,1.1115249,120370.0,120360.0,0.70311111]
[1752821883863,1.1115249,120370.0,120360.0,0.74832111]
[1752821884568,1.12982126,120370.0,120360.0,0.74832111]
[1752821884868,1.12982126,120370.0,120360.0,0.85941111]
[1752821885066,1.12982126,120370.0,120360.0,0.89493111]
[1752821885466,1.12982126,120370.0,120360.0,0.62190283]
[1752821885667,1.12982126,120370.0,120360.0,0.89493111]